bitfinex-derivatives/quotes_BTCF0:USTF0_20251028
["timestamp","ask_amount","ask_price","bid_price","bid_amount"]
[1761638538485,0.69926561,114260.0,114240.0,0.05706]
[1761638538781,0.73078137,114260.0,114240.0,0.05706]
[1761638539579,0.73078137,114260.0,114250.0,0.034]
[1761638539783,0.73078137,114260.0,114250.0,0.05698]
[1761638540485,0.72878137,114260.0,114250.0,0.05698]
[1761638540792,0.73078137,114260.0,114250.0,0.05698]
[1761638541387,0.69926561,114260.0,114250.0,0.05698]
[1761638545887,0.35926561,114260.0,114250.0,0.05698]
[1761638546087,0.02516226,114260.0,114250.0,0.05698]
[1761638546683,0.02516226,114260.0,114250.0,0.65698]
[1761638559500,0.13516226,114260.0,114250.0,0.05698]
[1761638567310,0.15878081,114260.0,114250.0,0.05698]
[1761638577711,0.59878081,114260.0,114250.0,0.05698]
[1761638577913,0.63029657,114260.0,114250.0,0.05698]
[1761638581223,0.69913605,114260.0,114250.0,0.05698]
[1761638584919,0.66762029,114260.0,114250.0,0.05698]
[1761638589630,0.69913605,114260.0,114250.0,0.05698]
[1761638598940,0.17029657,114260.0,114250.0,0.05698]
[1761638599340,0.08029657,114260.0,114250.0,0.05698]
[1761638600042,0.04878081,114260.0,114250.0,0.05698]
[1761638600552,0.02516226,114260.0,114250.0,0.05698]
[1761638601947,0.02516226,114260.0,114250.0,0.744513]
[1761638602447,0.02516226,114260.0,114250.0,0.65698]
[1761638603450,0.02516226,114260.0,114250.0,0.744513]
[1761638603948,0.02516226,114260.0,114250.0,0.65698]
[1761638604448,0.02316226,114260.0,114250.0,0.65698]
[1761638604748,0.02361855,114270.0,114250.0,0.65698]
[1761638604945,0.02361855,114270.0,114260.0,0.05757]
[1761638607450,0.02561855,114270.0,114260.0,0.05757]
[1761638607840,0.04878081,114270.0,114260.0,0.05757]
[1761638608350,0.02516226,114270.0,114260.0,0.05757]
[1761638610154,0.11268016,114270.0,114260.0,0.05757]
[1761638621265,0.41620796,114270.0,114260.0,0.05757]
[1761638626667,0.11268016,114270.0,114260.0,0.05757]
[1761638626860,0.41620796,114270.0,114260.0,0.05757]
[1761638628867,0.26444406,114270.0,114260.0,0.05757]
[1761638629666,0.1537639,114270.0,114260.0,0.8968592]
[1761638629865,0.2412815,114270.0,114260.0,0.8968592]
[1761638630259,0.0895176,114270.0,114260.0,0.7450953]
[1761638630460,0.2412815,114270.0,114260.0,0.8968592]
[1761638630957,0.2392815,114270.0,114260.0,0.90573598]
[1761638633168,0.2392815,114270.0,114260.0,0.75397208]
[1761638633667,0.2392815,114270.0,114260.0,0.90573598]
[1761638634468,0.0875176,114270.0,114260.0,0.90573598]
[1761638634655,0.2392815,114270.0,114260.0,0.90573598]
[1761638635867,0.0875176,114270.0,114260.0,0.30573598]
[1761638636168,0.2392815,114270.0,114260.0,0.30573598]
[1761638639775,0.2392815,114270.0,114260.0,0.2968592]
[1761638640576,0.2392815,114270.0,114260.0,0.3054781]
[1761638640881,0.2392815,114270.0,114260.0,0.9054781]
[1761638642076,0.0875176,114270.0,114260.0,0.9054781]
[1761638642272,0.2392815,114270.0,114260.0,0.8968592]
[1761638642868,0.2392815,114270.0,114260.0,0.7450953]
[1761638643068,0.2392815,114270.0,114260.0,0.8968592]
[1761638643277,0.2392815,114270.0,114260.0,0.7450953]
[1761638645182,0.3910454,114270.0,114260.0,0.1450953]
[1761638645383,0.3910454,114270.0,114260.0,0.05757]
[1761638658587,0.41442203,114270.0,114260.0,0.05757]
[1761638665584,0.41441965,114270.0,114260.0,0.05757]
[1761638665982,0.11089185,114270.0,114260.0,0.05757]
[1761638666182,0.41441965,114270.0,114260.0,0.05757]
[1761638667199,0.26265575,114270.0,114260.0,0.05757]
[1761638674397,0.41441965,114270.0,114260.0,0.05757]
[1761638675901,0.26265575,114270.0,114260.0,0.05757]
[1761638679898,0.26264907,114270.0,114260.0,0.05757]
[1761638681297,0.41440629,114270.0,114260.0,0.05757]
[1761638684205,0.26264907,114270.0,114260.0,0.05757]
[1761638686101,0.50192389,114270.0,114250.0,0.0126]
[1761638686303,0.23928202,114260.0,114250.0,0.05694]
[1761638686605,0.087533,114250.0,114240.0,0.05702]
[1761638686804,0.26264703,114250.0,114240.0,0.05702]
[1761638687195,0.24929022,114250.0,114240.0,0.05702]
[1761638687502,0.0875407,114240.0,114230.0,0.05702]
[1761638687697,0.39105514,114240.0,114230.0,0.05702]
[1761638688709,0.23929792,114240.0,114230.0,0.05702]
[1761638689906,0.0875407,114240.0,114230.0,0.06302]
[1761638690208,0.23929792,114240.0,114230.0,0.06402]
[1761638690705,0.24786894,114240.0,114230.0,0.06402]
[1761638703513,0.43962616,114240.0,114230.0,0.007]
[1761638704413,0.43962616,114240.0,114230.0,0.02905]
[1761638705109,0.43962616,114240.0,114230.0,0.02205]
[1761638705411,0.43962616,114240.0,114230.0,0.02405]
[1761638705813,0.43962616,114240.0,114230.0,0.04566]
[1761638706018,0.43962616,114240.0,114230.0,0.03747]
[1761638706314,0.43962616,114240.0,114230.0,0.002]
[1761638708317,0.43962616,114240.0,114230.0,0.05802]
[1761638709109,0.087533,114250.0,114240.0,0.0562]
[1761638709420,0.26253388,114250.0,114240.0,0.0562]
[1761638710117,0.11939265,114250.0,114240.0,0.0562]
[1761638710414,0.00861599,114250.0,114240.0,0.30409723]
[1761638710826,0.087526,114260.0,114250.0,0.143733]
[1761638711112,0.087526,114260.0,114250.0,0.29549022]
[1761638711918,0.089526,114260.0,114250.0,0.143733]
[1761638712619,0.087526,114260.0,114250.0,0.143733]
[1761638714118,0.23928322,114260.0,114250.0,0.0562]
[1761638714320,0.27928322,114260.0,114250.0,0.0562]
[1761638714619,0.087526,114260.0,114250.0,0.0562]
[1761638715814,0.089526,114260.0,114250.0,0.0562]
[1761638716015,0.24128322,114260.0,114250.0,0.0562]
[1761638725727,0.24128322,114260.0,114250.0,0.1437336]
[1761638726735,0.089526,114260.0,114250.0,0.1437336]
[1761638728232,0.089526,114260.0,114250.0,0.29549082]
[1761638728933,0.089526,114260.0,114250.0,0.1437336]
[1761638730239,0.087526,114260.0,114250.0,0.1437336]
[1761638730428,0.089526,114260.0,114250.0,0.1437336]
[1761638733836,0.087526,114260.0,114250.0,0.1437336]
[1761638734138,0.089526,114260.0,114250.0,0.1437336]
[1761638734932,0.087526,114260.0,114250.0,0.1437336]
[1761638735136,0.089526,114260.0,114250.0,0.1437336]
[1761638736745,0.087526,114260.0,114250.0,0.1437336]
[1761638737439,0.089526,114260.0,114250.0,0.1437336]
[1761638737844,0.087526,114260.0,114250.0,0.1437336]
[1761638738036,0.089526,114260.0,114250.0,0.1437336]
[1761638741851,0.24127657,114260.0,114250.0,0.0562]
[1761638742050,0.24127657,114260.0,114250.0,0.20795057]
[1761638742051,0.26430941,114260.0,114250.0,0.20795057]
[1761638742852,0.26430941,114260.0,114250.0,0.29548367]
[1761638743753,0.26430941,114260.0,114250.0,0.0562]
[1761638743948,0.41605998,114260.0,114250.0,0.20795057]
[1761638744251,0.41605998,114260.0,114250.0,0.29548407]
[1761638744653,0.41605998,114260.0,114250.0,0.1437335]
[1761638744954,0.41605998,114260.0,114250.0,0.0562]
[1761638745955,0.41605998,114260.0,114250.0,0.1437329]
[1761638746649,0.26430941,114260.0,114250.0,0.29548347]
[1761638747653,0.26230941,114260.0,114250.0,0.29548347]
[1761638747952,0.26430941,114260.0,114250.0,0.29548347]
[1761638749546,0.24127657,114260.0,114250.0,0.35851426]
[1761638752158,0.26429723,114260.0,114250.0,0.29548347]
[1761638752556,0.26429723,114260.0,114250.0,0.1437329]
[1761638752760,0.26429723,114260.0,114250.0,0.29548347]
[1761638754067,0.26229723,114260.0,114250.0,0.29548347]
[1761638754267,0.26429723,114260.0,114250.0,0.1437329]
[1761638754470,0.26429723,114260.0,114250.0,0.29548347]
[1761638756154,0.26229723,114260.0,114250.0,0.29548347]
[1761638756359,0.26429723,114260.0,114250.0,0.29548347]
[1761638756768,0.26229723,114260.0,114250.0,0.29548347]
[1761638756968,0.26429723,114260.0,114250.0,0.29548347]
[1761638759273,0.26429723,114260.0,114250.0,0.35851426]
[1761638759770,0.26429723,114260.0,114250.0,0.29548347]
[1761638760176,0.26429723,114260.0,114250.0,0.1437329]
[1761638760371,0.26429723,114260.0,114250.0,0.29548347]
[1761638761075,0.089526,114260.0,114250.0,0.51026483]
[1761638761763,0.089526,114260.0,114250.0,0.35851426]
[1761638761964,0.002,114260.0,114250.0,0.51026483]
[1761638762169,0.0875182,114270.0,114260.0,0.1448153]
[1761638762376,0.0875182,114270.0,114260.0,0.51131426]
[1761638762763,0.48827634,114280.0,114260.0,0.51131426]
[1761638762764,0.33653017,114280.0,114270.0,0.1228276]
[1761638762969,0.33653017,114280.0,114270.0,0.29655817]
[1761638763169,0.0875167,114280.0,114270.0,0.29655817]
[1761638764276,0.0875167,114280.0,114270.0,0.1448076]
[1761638764472,0.23926727,114280.0,114270.0,0.20904057]
[1761638764673,0.23926727,114280.0,114270.0,0.29655767]
[1761638765075,0.24026727,114280.0,114270.0,0.29655767]
[1761638769982,0.24026727,114280.0,114270.0,0.3054445]
[1761638772886,0.0885167,114280.0,114270.0,0.3054445]
[1761638774392,0.0885167,114280.0,114270.0,0.29655767]
[1761638774586,0.0885167,114280.0,114270.0,0.30520018]
[1761638775588,0.0885167,114280.0,114270.0,0.29655767]
[1761638775788,0.24026727,114280.0,114270.0,0.29655767]
[1761638775987,0.0885167,114280.0,114270.0,0.29655767]
[1761638776285,0.24026727,114280.0,114270.0,0.29655767]
[1761638778087,0.0885167,114280.0,114270.0,0.30547295]
[1761638778295,0.24026727,114280.0,114270.0,0.30547295]
[1761638778780,0.0885167,114280.0,114270.0,0.30547295]
[1761638784682,0.0885167,114280.0,114270.0,0.15372238]
[1761638784879,0.0885167,114280.0,114270.0,0.30547295]
[1761638785289,0.0885167,114280.0,114270.0,0.29655767]
[1761638785488,0.0885167,114280.0,114270.0,0.30529578]
[1761638786293,0.0885167,114280.0,114270.0,0.29655767]
[1761638786495,0.0885167,114280.0,114270.0,0.35955549]
[1761638786696,0.24026727,114280.0,114270.0,0.35955549]
[1761638787494,0.24026727,114280.0,114270.0,0.36852164]
[1761638787998,0.0885167,114280.0,114270.0,0.36852164]
[1761638788187,0.0885167,114280.0,114270.0,0.30552382]
[1761638788387,0.0885167,114280.0,114270.0,0.36852164]
[1761638800397,0.0885167,114280.0,114270.0,0.35955549]
[1761638800703,0.39201784,114280.0,114270.0,0.12028782]
[1761638800901,0.39201784,114280.0,114270.0,0.20780552]
[1761638801109,0.39201784,114280.0,114270.0,0.05729]
[1761638801302,0.41448241,114280.0,114270.0,0.05729]
[1761638801501,0.0875177,114270.0,114260.0,0.05926]
[1761638801904,0.23926827,114270.0,114260.0,0.05926]
[1761638802097,0.23926827,114270.0,114260.0,0.21101057]
[1761638803299,0.23926827,114270.0,114260.0,0.27400839]
[1761638803699,0.0875177,114270.0,114260.0,0.12225782]
[1761638804208,0.0875177,114270.0,114260.0,0.06126]
[1761638807409,0.23925062,114270.0,114260.0,0.06126]
[1761638811707,0.0875177,114270.0,114260.0,0.06126]
[1761638816318,0.23925062,114270.0,114260.0,0.06126]
[1761638817423,0.0875177,114270.0,114260.0,0.06126]
[1761638817622,0.23925062,114270.0,114260.0,0.06126]
[1761638826224,0.39098354,114270.0,114260.0,0.002]
[1761638826620,0.23925062,114270.0,114260.0,0.002]
[1761638826927,0.23925062,114270.0,114260.0,0.02438]
[1761638827230,0.23925062,114270.0,114260.0,0.06041]
[1761638827619,0.26206366,114270.0,114260.0,0.06041]
[1761638827827,0.23925062,114270.0,114260.0,0.06041]
[1761638828327,0.26206768,114270.0,114260.0,0.06041]
[1761638828727,0.23925062,114270.0,114260.0,0.06041]
[1761638829228,0.26207273,114270.0,114260.0,0.06041]
[1761638839845,0.11033981,114270.0,114260.0,0.06041]
[1761638840035,0.26207273,114270.0,114260.0,0.06041]
[1761638840238,0.11033981,114270.0,114260.0,0.06041]
[1761638841546,0.26207273,114270.0,114260.0,0.06041]
[1761638861061,0.26207273,114270.0,114260.0,0.06041]
[1761638865860,0.26208919,114270.0,114260.0,0.06041]
[1761638869555,0.41383857,114270.0,114260.0,0.002]
[1761638870065,0.45383857,114270.0,114260.0,0.002]
[1761638870263,0.43746259,114270.0,114260.0,0.002]
[1761638870462,0.0875331,114250.0,114240.0,0.05802]
[1761638870660,0.2623001,114250.0,114240.0,0.05802]
[1761638870966,0.0875407,114240.0,114230.0,0.05816]
[1761638871166,0.39103946,114240.0,114230.0,0.05816]
[1761638872666,0.39103946,114240.0,114230.0,0.06616]
[1761638873668,0.39103946,114240.0,114230.0,0.06716]
[1761638876872,0.23929008,114240.0,114230.0,0.06716]
[1761638877064,0.23929008,114240.0,114230.0,0.30645758]
[1761638877264,0.23929008,114240.0,114230.0,0.21890938]
[1761638877762,0.23929008,114240.0,114230.0,0.30645758]
[1761638877969,0.0875407,114240.0,114230.0,0.30645758]
[1761638879774,0.0875407,114240.0,114230.0,0.1547082]
[1761638879973,0.23929008,114240.0,114230.0,0.30645758]
[1761638881473,0.23929008,114240.0,114230.0,0.21890938]
[1761638881673,0.23929008,114240.0,114230.0,0.1547082]
[1761638882975,0.23929008,114240.0,114230.0,0.30645758]
[1761638885076,0.23929008,114240.0,114230.0,0.21890938]
[1761638887278,0.23929008,114240.0,114230.0,0.30645768]
[1761638887781,0.0875407,114240.0,114230.0,0.30645768]
[1761638891883,0.0875407,114240.0,114230.0,0.1547083]
[1761638892084,0.0875407,114240.0,114230.0,0.30645758]
[1761638895687,0.23929008,114240.0,114230.0,0.30645758]
[1761638897185,0.0875407,114240.0,114230.0,0.30645758]
[1761638901600,0.23929008,114240.0,114230.0,0.30645758]
[1761638904298,0.0875407,114240.0,114230.0,0.30645758]
[1761638904497,0.23929008,114240.0,114230.0,0.30645758]
[1761638905596,0.0875407,114240.0,114230.0,0.30645758]
[1761638905798,0.23929008,114240.0,114230.0,0.30645758]
[1761638908603,0.0875407,114240.0,114230.0,0.30645758]
[1761638909593,0.0875407,114240.0,114230.0,0.30645718]
[1761638910399,0.23929008,114240.0,114230.0,0.30645718]
[1761638918302,0.0875407,114240.0,114230.0,0.30645718]
[1761638918499,0.23929008,114240.0,114230.0,0.30645718]
[1761638920404,0.0875407,114240.0,114230.0,0.30645718]
[1761638920804,0.0875407,114240.0,114230.0,0.38515681]
[1761638921408,0.0875407,114240.0,114230.0,0.30645788]
[1761638925696,0.0875407,114240.0,114230.0,0.30648272]
[1761638932915,0.0875279,114260.0,114230.0,0.30648272]
[1761638933123,0.11084354,114260.0,114250.0,0.21177422]
[1761638933416,0.11084354,114260.0,114250.0,0.147533]
[1761638934309,0.11084354,114260.0,114250.0,0.149533]
[1761638935216,0.11084354,114260.0,114250.0,0.062]
[1761638938219,0.11084354,114260.0,114250.0,0.1495328]
[1761638938715,0.0875279,114260.0,114250.0,0.30130702]
[1761638939122,0.0875199,114270.0,114260.0,0.0592]
[1761638940419,0.23929412,114270.0,114260.0,0.0592]
[1761638940719,0.0875199,114270.0,114260.0,0.0592]
[1761638940919,0.0875199,114270.0,114260.0,0.1467255]
[1761638942620,0.23929412,114270.0,114260.0,0.1467255]
[1761638942821,0.23929412,114270.0,114260.0,0.0592]
[1761638943222,0.0875199,114270.0,114260.0,0.1467254]
[1761638961243,0.23929412,114270.0,114260.0,0.1467254]
[1761638965046,0.0875199,114270.0,114260.0,0.1467254]
[1761638965346,0.23929412,114270.0,114260.0,0.1467254]
[1761638966046,0.0875199,114270.0,114260.0,0.1467254]
[1761638972655,0.23929412,114270.0,114260.0,0.0592]
[1761638972842,0.23929412,114270.0,114260.0,0.1467257]
[1761638973042,0.23929412,114270.0,114260.0,0.1467256]
[1761638980645,0.0875199,114270.0,114260.0,0.1467256]
[1761638980957,0.0875199,114270.0,114260.0,0.29849982]
[1761638984061,0.0875154,114280.0,114270.0,0.1009028]
[1761638984359,0.11058038,114280.0,114270.0,0.1437928]
[1761638985157,0.11258038,114280.0,114270.0,0.1437928]
[1761638987859,0.26427845,114280.0,114270.0,0.29549087]
[1761638991061,0.11258038,114280.0,114270.0,0.29549087]
[1761638991657,0.26427845,114280.0,114270.0,0.29549087]
[1761639000667,0.26427845,114280.0,114270.0,0.05628]
[1761639000875,0.11258038,114280.0,114270.0,0.05628]
[1761639001171,0.11258038,114280.0,114270.0,0.29549577]
[1761639001367,0.26427845,114280.0,114270.0,0.29549577]
[1761639003170,0.26427845,114280.0,114270.0,0.20797807]
[1761639004667,0.26427845,114280.0,114270.0,0.05628]
[1761639004872,0.26427845,114280.0,114270.0,0.20797807]
[1761639005768,0.26427845,114280.0,114270.0,0.05628]
[1761639005974,0.26427845,114280.0,114270.0,0.20797807]
[1761639008582,0.26427845,114280.0,114270.0,0.05628]
[1761639008783,0.26427845,114280.0,114270.0,0.20797807]
[1761639009270,0.41597652,114280.0,114270.0,0.05628]
[1761639010075,0.11258038,114280.0,114270.0,0.05628]
[1761639010278,0.41597652,114280.0,114270.0,0.05628]
[1761639011278,0.11258038,114280.0,114270.0,0.05628]
[1761639011478,0.41597652,114280.0,114270.0,0.05628]
[1761639013482,0.26427845,114280.0,114270.0,0.05628]
[1761639014781,0.26427845,114280.0,114270.0,0.20797807]
[1761639017184,0.26427845,114280.0,114270.0,0.05628]
[1761639017782,0.26427845,114280.0,114270.0,0.20797807]
[1761639019278,0.26427845,114280.0,114270.0,0.05628]
[1761639026891,0.11258038,114280.0,114270.0,0.05628]
[1761639027190,0.26427845,114280.0,114270.0,0.05628]
[1761639031596,0.41597652,114280.0,114270.0,0.05628]
[1761639031799,0.0875257,114260.0,114250.0,0.21963963]
[1761639031988,0.39092184,114260.0,114250.0,0.05794]
[1761639032390,0.39092184,114260.0,114250.0,0.0367]
[1761639032592,0.087541,114240.0,114230.0,0.05733]
[1761639032793,0.39093714,114240.0,114230.0,0.05733]
[1761639033194,0.23923907,114240.0,114230.0,0.05733]
[1761639033708,0.42093714,114240.0,114230.0,0.03609]
[1761639033902,0.0875486,114230.0,114220.0,0.05733]
[1761639034091,0.23924667,114230.0,114220.0,0.05733]
[1761639035500,0.23924667,114230.0,114220.0,0.05833]
[1761639036003,0.23924667,114230.0,114220.0,0.06333]
[1761639036403,0.24813854,114230.0,114220.0,0.06333]
[1761639042507,0.0875486,114230.0,114220.0,0.06333]
[1761639042808,0.0875486,114230.0,114220.0,0.21502807]
[1761639043107,0.23924667,114230.0,114220.0,0.21502807]
[1761639043608,0.24822103,114230.0,114220.0,0.06333]
[1761639044303,0.09652296,114230.0,114220.0,0.06333]
[1761639044500,0.23924667,114230.0,114220.0,0.06333]
[1761639044701,0.23924667,114230.0,114220.0,0.21502807]
[1761639046712,0.23924667,114230.0,114220.0,0.06333]
[1761639047713,0.23939387,114230.0,114220.0,0.06333]
[1761639061223,0.27248769,114230.0,114220.0,0.006]
[1761639062319,0.27248769,114230.0,114220.0,0.001]
[1761639062526,0.29699689,114230.0,114220.0,0.001]
[1761639063025,0.087556,114220.0,114210.0,0.05901]
[1761639063228,0.26249509,114220.0,114210.0,0.05901]
[1761639065131,0.26249509,114220.0,114210.0,0.06101]
[1761639076330,0.23940127,114220.0,114210.0,0.06101]
[1761639091158,0.26257512,114220.0,114210.0,0.06101]
[1761639097569,0.23940127,114220.0,114210.0,0.06101]
[1761639098366,0.26255933,114220.0,114210.0,0.06101]
[1761639105469,0.11071406,114220.0,114210.0,0.06101]
[1761639105668,0.23940127,114220.0,114210.0,0.06101]
[1761639105965,0.087556,114220.0,114210.0,0.30041887]
[1761639106468,0.087556,114220.0,114210.0,0.1485736]
[1761639106669,0.087556,114220.0,114210.0,0.21162896]
[1761639108272,0.087556,114220.0,114210.0,0.36347423]
[1761639109682,0.087556,114220.0,114210.0,0.1485736]
[1761639109873,0.087556,114220.0,114210.0,0.30040276]
[1761639110382,0.087556,114220.0,114210.0,0.1485736]
[1761639110581,0.087556,114220.0,114210.0,0.30040276]
[1761639111082,0.087556,114220.0,114210.0,0.36341877]
[1761639116288,0.087556,114220.0,114210.0,0.21158961]
[1761639116481,0.087556,114220.0,114210.0,0.36341877]
[1761639120687,0.087556,114220.0,114210.0,0.51524033]
[1761639120888,0.0875486,114230.0,114220.0,0.145536]
[1761639121079,0.0875486,114230.0,114220.0,0.36034]
[1761639122186,0.0885486,114230.0,114220.0,0.36034]
[1761639123986,0.24037776,114230.0,114220.0,0.36034]
[1761639124188,0.24037776,114230.0,114220.0,0.36901121]
[1761639124882,0.24037776,114230.0,114220.0,0.36034]
[1761639125078,0.24037776,114230.0,114220.0,0.12095484]
[1761639125692,0.24037776,114230.0,114220.0,0.20851074]
[1761639126081,0.24037776,114230.0,114220.0,0.12095484]
[1761639126590,0.24037776,114230.0,114220.0,0.20851074]
[1761639127296,0.24037776,114230.0,114220.0,0.12095484]
[1761639127996,0.24037776,114230.0,114220.0,0.20851084]
[1761639128194,0.24037776,114230.0,114220.0,0.12095484]
[1761639131002,0.24037776,114230.0,114220.0,0.05798]
[1761639131193,0.24037776,114230.0,114220.0,0.12095484]
[1761639133197,0.24037776,114230.0,114220.0,0.05798]
[1761639134398,0.39220692,114230.0,114220.0,0.05798]
[1761639134603,0.24037776,114230.0,114220.0,0.05798]
[1761639136095,0.2632465,114230.0,114220.0,0.05798]
[1761639137000,0.41507566,114230.0,114220.0,0.05798]
[1761639137200,0.24037776,114230.0,114220.0,0.05798]
[1761639152815,0.39220692,114230.0,114220.0,0.05798]
[1761639153517,0.66260148,114230.0,114210.0,0.11905484]
[1761639153819,0.30365832,114220.0,114210.0,0.11905484]
[1761639154020,0.32365832,114220.0,114210.0,0.11905484]
[1761639154519,0.41121442,114220.0,114210.0,0.05608]
[1761639155513,0.41121442,114220.0,114210.0,0.05808]
[1761639156206,0.39121442,114220.0,114210.0,0.05808]
[1761639167529,0.39121442,114220.0,114210.0,0.01509]
[1761639167835,0.54304358,114220.0,114210.0,0.002]
[1761639168127,0.39121442,114220.0,114210.0,0.002]
[1761639169329,0.39121442,114220.0,114210.0,0.02371]
[1761639170429,0.414303,114220.0,114210.0,0.02371]
[1761639170821,0.414303,114220.0,114210.0,0.0586]
[1761639171737,0.26255537,114220.0,114210.0,0.002]
[1761639171923,0.26255537,114220.0,114210.0,0.0586]
[1761639172530,0.11064468,114220.0,114210.0,0.0586]
[1761639172732,0.26255537,114220.0,114210.0,0.0586]
[1761639176232,0.26255537,114220.0,114210.0,0.002]
[1761639177230,0.26255539,114220.0,114210.0,0.002]
[1761639177729,0.26255539,114220.0,114210.0,0.02371]
[1761639178332,0.30255539,114220.0,114210.0,0.002]
[1761639179728,0.30255539,114220.0,114210.0,0.02457]
[1761639181229,0.30255539,114220.0,114210.0,0.002]
[1761639181735,0.45446608,114220.0,114210.0,0.002]
[1761639182336,0.0875658,114210.0,114200.0,0.03566]
[1761639182538,0.45138718,114210.0,114200.0,0.05888]
[1761639183335,0.47447621,114210.0,114200.0,0.05888]
[1761639183729,0.47447621,114210.0,114200.0,0.06288]
[1761639184237,0.17065483,114210.0,114200.0,0.06288]
[1761639184535,0.47447621,114210.0,114200.0,0.06288]
[1761639184735,0.32256552,114210.0,114200.0,0.06288]
[1761639185534,0.47447621,114210.0,114200.0,0.06288]
[1761639188540,0.32256552,114210.0,114200.0,0.06288]
[1761639190733,0.47447621,114210.0,114200.0,0.06288]
[1761639191639,0.32256552,114210.0,114200.0,0.06288]
[1761639197242,0.17065483,114210.0,114200.0,0.06288]
[1761639197442,0.32256552,114210.0,114200.0,0.06288]
[1761639197641,0.47447621,114210.0,114200.0,0.06288]
[1761639200344,0.32256552,114210.0,114200.0,0.06288]
[1761639200548,0.26256552,114210.0,114200.0,0.06288]
[1761639201850,0.11065483,114210.0,114200.0,0.06288]
[1761639202942,0.26256552,114210.0,114200.0,0.06288]
[1761639204848,0.11065483,114210.0,114200.0,0.06288]
[1761639205049,0.26256552,114210.0,114200.0,0.06288]
[1761639212848,0.42447621,114210.0,114200.0,0.06288]
[1761639213550,0.42447621,114210.0,114200.0,0.03966]
[1761639214148,0.42447621,114210.0,114200.0,0.004]
[1761639214452,0.44804636,114210.0,114200.0,0.004]
[1761639215155,0.43804636,114210.0,114200.0,0.004]
[1761639215358,0.67804636,114210.0,114200.0,0.004]
[1761639215654,0.67804636,114210.0,114200.0,0.02718]
[1761639215855,0.49804636,114210.0,114200.0,0.06096]
[1761639216160,0.47447621,114210.0,114200.0,0.06096]
[1761639216654,0.32256552,114210.0,114200.0,0.06096]
[1761639217962,0.47447621,114210.0,114200.0,0.06096]
[1761639218251,0.17065483,114210.0,114200.0,0.06096]
[1761639218559,0.26256552,114210.0,114200.0,0.06096]
[1761639231769,0.41449451,114210.0,114200.0,0.06096]
[1761639236468,0.26257467,114210.0,114200.0,0.06096]
[1761639236659,0.41449451,114210.0,114200.0,0.06096]
[1761639236859,0.26257467,114210.0,114200.0,0.06096]
[1761639237768,0.41449451,114210.0,114200.0,0.06096]
[1761639247770,0.11065483,114210.0,114200.0,0.06096]
[1761639247969,0.26257467,114210.0,114200.0,0.06096]
[1761639253261,0.42449451,114210.0,114200.0,0.004]
[1761639253667,0.42449451,114210.0,114200.0,0.02591]
[1761639253867,0.42449451,114210.0,114200.0,0.06195]
[1761639254666,0.44806466,114210.0,114200.0,0.004]
[1761639260581,0.64806466,114210.0,114200.0,0.004]
[1761639265885,0.64806466,114210.0,114200.0,0.02591]
[1761639266081,0.64806466,114210.0,114200.0,0.004]
[1761639272991,0.0875808,114190.0,114180.0,0.05774]
[1761639273187,0.39142048,114190.0,114180.0,0.05774]
[1761639274081,0.39142048,114190.0,114180.0,0.05874]
[1761639274892,0.39142048,114190.0,114180.0,0.05774]
[1761639275091,0.39142048,114190.0,114180.0,0.05874]
[1761639275391,0.40013617,114190.0,114180.0,0.06374]
[1761639275986,0.24821633,114190.0,114180.0,0.05874]
[1761639276186,0.24821633,114190.0,114180.0,0.06174]
[1761639281396,0.27146604,114190.0,114180.0,0.06174]
[1761639284098,0.44013617,114190.0,114180.0,0.06174]
[1761639284306,0.46343637,114190.0,114180.0,0.06174]
[1761639287292,0.61535621,114190.0,114180.0,0.004]
[1761639287500,0.0875884,114180.0,114170.0,8.796e-05]
[1761639287801,0.59664812,114180.0,114170.0,0.02255796]
[1761639288000,0.44472828,114180.0,114170.0,0.02255796]
[1761639288597,0.44472828,114180.0,114170.0,0.05701796]
[1761639288799,0.44472828,114180.0,114170.0,0.05801796]
[1761639289401,0.44472828,114180.0,114170.0,0.05901796]
[1761639291701,0.29289045,114180.0,114170.0,0.05901796]
[1761639295004,0.23959025,114180.0,114170.0,0.05901796]
[1761639295198,0.11085109,114180.0,114170.0,0.05901796]
[1761639295405,0.11085109,114180.0,114170.0,0.14661416]
[1761639295602,0.0875884,114180.0,114170.0,0.05901796]
[1761639298205,0.0875884,114180.0,114170.0,0.14661356]
[1761639298903,0.0875884,114180.0,114170.0,0.05901796]
[1761639299207,0.0875884,114180.0,114170.0,0.14661356]
[1761639300109,0.0875884,114180.0,114170.0,0.05901796]
[1761639300606,0.0875884,114180.0,114170.0,0.65901796]
[1761639300997,0.0875884,114180.0,114170.0,0.74661436]
[1761639301906,0.087585,114190.0,114180.0,0.1462932]
[1761639304308,0.090585,114190.0,114180.0,0.1462932]
[1761639304806,0.24258685,114190.0,114180.0,0.05871]
[1761639306812,0.24258685,114190.0,114180.0,0.1462984]
[1761639308510,0.24258685,114190.0,114180.0,0.05871]
[1761639310302,0.090585,114190.0,114180.0,0.05871]
[1761639310502,0.24258685,114190.0,114180.0,0.05871]
[1761639310910,0.24258685,114190.0,114180.0,0.1462984]
[1761639313609,0.24258685,114190.0,114180.0,0.05871]
[1761639323728,0.2656571,114190.0,114180.0,0.05871]
[1761639323928,0.24258685,114190.0,114180.0,0.05871]
[1761639324130,0.26565627,114190.0,114180.0,0.05871]
[1761639324326,0.26565627,114190.0,114180.0,0.03561]
[1761639324833,0.0875883,114180.0,114170.0,0.05734796]
[1761639325030,0.41466581,114180.0,114170.0,0.05734796]
[1761639325331,0.41466702,114180.0,114170.0,0.05734796]
[1761639325525,0.26266517,114180.0,114170.0,0.05734796]
[1761639326535,0.0875883,114180.0,114170.0,0.05734796]
[1761639326920,0.0885883,114180.0,114170.0,0.05734796]
[1761639327529,0.0885883,114180.0,114170.0,0.20934981]
[1761639327834,0.0885883,114180.0,114170.0,0.21034981]
[1761639328332,0.24059015,114180.0,114170.0,0.05834796]
[1761639328733,0.0885883,114180.0,114170.0,0.05834796]
[1761639329037,0.0885883,114180.0,114170.0,0.65834796]
[1761639330036,0.0885883,114180.0,114170.0,0.74594396]
[1761639332640,0.0885883,114180.0,114170.0,0.65834796]
[1761639332834,0.0885883,114180.0,114170.0,0.05834796]
[1761639336830,0.24059015,114180.0,114170.0,0.05834796]
[1761639338942,0.0885883,114180.0,114170.0,0.05834796]
[1761639341543,0.001,114180.0,114170.0,0.29794581]
[1761639343437,0.0885883,114180.0,114170.0,0.29794581]
[1761639346750,0.0885883,114180.0,114170.0,0.89794581]
[1761639346944,0.0885883,114180.0,114170.0,0.29794581]
[1761639351654,0.0885883,114180.0,114170.0,0.89794581]